Cogmind - Beta 16 @@@ ROGUE MODE // 2025.10.27 @ 12:27:51 Player: AshCrow Result: Destroyed by WV-000(R) with Subdweller Machine Gun Performance ------------- Evolutions (0) 0 Regions Visited (3) 600 Robots Destroyed (16) 80 Value Destroyed (315) 315 Prototype IDs (0) 0 Alien Tech Used (0) 0 Bonus (35) 35 TOTAL SCORE: 1030 Bonus ------- Follower Combat Kills 35 Cogmind --------- Core Integrity 0/250 Matter 252/300 Energy 125/125 System Corruption 0% Temperature Cool (0) Movement Rolling (80) Location -10/Subcaves Parts ------- > --- POWER (1) -------- Light Ion Engine > --- PROPULSION (2) --- Wheel Wheel > --- UTILITY (2) ------ Small Storage Unit Terrain Scanner > --- WEAPON (2) ------- Subdweller Machine Gun Battle Cannon > --- INVENTORY (8) ---- Ion Engine Ion Engine Wheel Wheel Compact Wheel Flight Unit Light Assault Rifle Grenade Launcher Peak State ------------ > --- POWER ------------ Light Ion Engine > --- PROPULSION ------- Wheel Wheel > --- UTILITY ---------- Small Storage Unit Terrain Scanner > --- WEAPON ----------- Subdweller Machine Gun Battle Cannon > --- INVENTORY -------- Ion Engine Ion Engine Wheel Wheel Compact Wheel Flight Unit Light Assault Rifle Grenade Launcher [Rating: 9] Favorites ----------- Power Ion Engine Engine Ion Engine Propulsion Light Treads Treads Light Treads Wheel Wheel Flight Unit Flight Unit Utility Small Storage Unit Device Terrain Scanner Storage Small Storage Unit Weapon Light Assault Rifle Energy Gun EM Pulse Gun Ballistic Gun Light Assault Rifle Ballistic Cannon Battle Cannon Launcher Grenade Launcher Build | -11 -10 -10 -10 ------- Run | Yrd Mat Min Sub Slots Evolved . | . . . . Power . | . . . . Propulsion . | . . . . Utility . | . . . . Weapon . | . . . . Parts Attached 25 | 8 4 11 2 Power 2 | 1 . 1 . Engine 2 | 1 . 1 . Core . | . . . . Reactor . | . . . . Propulsion 11 | 2 2 7 . Treads 2 | 2 . . . Leg . | . . . . Wheel 6 | . . 6 . Hover . | . . . . Flight 3 | . 2 1 . Utility 3 | 2 . 1 . Device 1 | . . 1 . Storage 2 | 2 . . . Processor . | . . . . Hackware . | . . . . Protection . | . . . . Artifact . | . . . . Weapon 9 | 3 2 2 2 Energy Gun 1 | 1 . . . Energy Cannon . | . . . . Ballistic Gun 6 | 2 2 1 1 Ballistic Cannon 1 | . . . 1 Launcher 1 | . . 1 . Special Weapon . | . . . . Impact Weapon . | . . . . Slashing Weapon . | . . . . Piercing Weapon . | . . . . Special Melee Weapon . | . . . . Unidentified Prototypes . | . . . . Parts Lost 2 | . . 2 . Power . | . . . . Propulsion 2 | . . 2 . Utility . | . . . . Weapon . | . . . . Highest Loss Streak 2 | . . 2 . To Critical Strikes . | . . . . Average Backups 4 | 1 2 5 8 Power 1 | . 1 1 2 Propulsion 1 | . . 1 4 Utility . | . . . . Weapon 1 | . 1 2 2 Tool/Special . | . . . . Unused Backups 5 | . . 1 4 Power 1 | . . . 1 Propulsion 4 | . . 1 3 Utility . | . . . . Weapon . | . . . . Tool/Special . | . . . . Average Slot Usage (%) 71 | . 95 64 100 Engine 13 | . 13 14 14 Treads 4 | . 26 . . Wheel 7 | . . 9 28 Flight 3 | . 1 4 . Device 3 | . . 3 14 Storage 8 | . 26 4 14 Ballistic Gun 27 | . 27 27 21 Peak Build Rating 9 | 7 7 7 9 Average Rating 5 | 5 6 4 7 On Entrance 4 | . 7 5 7 Avg Prop Armor Cover (%) . | . . . . Naked Turns 1 | . 1 . . Heaviest Build 17 | 17 17 12 16 Greatest Support 40 | 40 40 26 20 Greatest Overweight (x) 2 | . . 2 . Average Overweight (x) . | . . . . Largest Inventory Capacity 8 | 8 8 8 8 Average Capacity 6 | 7 7 5 8 Most Carried 8 | 2 5 8 8 Average Carried 5 | 1 2 5 8 Final Capacity 8 | 8 5 8 8 Final Carried 8 | 2 5 8 8 Class Distribution -------------------- 77% | Mutant 22% | Scavenger-Mutant Dominant Class ---------------- Mutant | -10/Materials Mutant | -10/Mines Scavenger-Mutant | -10/Subcaves Resources | -11 -10 -10 -10 ----------- Run | Yrd Mat Min Sub Matter Collected 671 | 212 113 346 . Remotely . | . . . . Salvage Created 501 | 56 176 269 . Parts 27 | 1 15 11 . Haulers Intercepted . | . . . . Recyclers Shooed . | . . . . Parts Field Recycled . | . . . . Retrieved Matter . | . . . . Parts Self-Destructed . | . . . . Prevented . | . . . . Parts Restored . | . . . . Kills | -11 -10 -10 -10 ------- Run | Yrd Mat Min Sub Combat Hostiles Destroyed 17 | . 5 12 . Guns 12 | . 5 7 . AOE 5 | . . 5 . Classes Destroyed 8 | 1 5 2 . Worker 1 | . 1 . . Recycler 2 | 1 . 1 . Mechanic 1 | . . 1 . Operator 1 | . 1 . . Watcher 1 | . 1 . . Swarmer 4 | . 3 1 . Grunt 6 | . 2 4 . Assembled 7 | . . 7 . Best Kill Streak 9 | 1 3 9 . Combat Bots Only 7 | . 3 7 . Max Kills in Single Turn 4 | 1 1 4 . Gunslinging . | . . . . Exploded 2 | . . 2 . Melee . | . . . . Uniques/NPCs Destroyed . | . . . . Combat | -11 -10 -10 -10 -------- Run | Yrd Mat Min Sub Hostile Shots Fired 55 | . 22 26 7 Missed 18 | . 7 10 1 Hits 37 | . 15 16 6 Projectile 37 | . 15 16 6 Damage Taken 584 | . 136 318 130 Core 261 | . 10 160 91 Absorbed by Shields . | . . . . Core Remaining (%) 100 | 100 . . . Volleys Fired 73 | 4 28 37 4 Largest 2 | 2 2 2 2 Hottest 63 | 40 40 50 63 Shots Fired 146 | 8 56 74 8 Gun 135 | 8 56 67 4 Cannon 4 | . . . 4 Launcher 7 | . . 7 . Special . | . . . . Kinetic 139 | 8 56 67 8 Thermal . | . . . . Explosive 7 | . . 7 . Electromagnetic . | . . . . Robot Hit Streak 6 | 5 6 6 5 Robot Miss Streak 5 | 1 5 4 1 Penetration Max . | . . . . Secondary Targets . | . . . . Shots Hit Robots 80 | 6 31 37 6 Core Hits 48 | 2 14 31 1 Critical Kills . | . . . . Critical Parts Destroyed . | . . . . Critical Strikes . | . . . . Melee Attacks . | . . . . Impact . | . . . . Slashing . | . . . . Piercing . | . . . . Sneak Attacks . | . . . . Combat Hostiles . | . . . . Follow-up Attacks . | . . . . Damage Inflicted 1183 | 48 263 743 129 Guns 596 | 48 263 247 38 Cannons 91 | . . . 91 Explosions 496 | . . 496 . Melee . | . . . . Ramming . | . . . . Kinetic 687 | 48 263 247 129 Thermal . | . . . . Explosive 496 | . . 496 . Electromagnetic . | . . . . Impact . | . . . . Slashing . | . . . . Piercing . | . . . . Highest Corruption . | . . . . Average Corruption . | . . . . Corruption Purged . | . . . . Corruption Blocked . | . . . . Overload Shots . | . . . . Overflow Damage 26 | . . 26 . Projectiles . | . . . . Explosions 26 | . . 26 . Melee . | . . . . Knockbacks 3 | . . . 3 Impact . | . . . . Kinetic 3 | . . . 3 Secondary . | . . . . Self-Inflicted Damage 38 | . . 38 . Shots 1 | . . 1 . Rammed . | . . . . Targets Rammed . | . . . . Kicked . | . . . . Crushed . | . . . . Highest Temperature 28 | . 12 28 . Average Temperature 10 | . 6 10 . Received Heat Transfer 135 | . 36 99 . Siege Activations . | . . . . Martial Activations . | . . . . Shielding Activations . | . . . . Robots Disrupted . | . . . . Combat Hostiles . | . . . . Robots Corrupted . | . . . . Combat Hostiles . | . . . . Parts Fried . | . . . . Impact Corruptions . | . . . . Robots Melted . | . . . . Combat Hostiles . | . . . . Parts Melted . | . . . . Heat Transferred . | . . . . Parts Sabotaged . | . . . . Parts Stolen . | . . . . Parts Stripped . | . . . . Power Chain Reactions . | . . . . Alert | -11 -10 -10 -10 ------- Run | Yrd Mat Min Sub Maximum Alert Level . | . . . . Low Security (%) 100 | 100 100 100 . Level 1 . | . . . . Level 2 . | . . . . Level 3 . | . . . . Level 4 . | . . . . Level 5 . | . . . . High Security . | . . . . Max Security . | . . . . Peak Influence 92 | 5 90 92 . Initial 25 | . . 25 . Average 11 | . 30 8 . Influence Increases 350 | 5 143 202 . Destroy 0b10 Robot/C 220 | . 100 120 . Destroy 0b10 Robot/NC 30 | 5 15 10 . Destroy Leader 42 | . 22 20 . Allied During Kill 5 | . . 5 . Successful Hack 6 | . 6 . . Destroy Structure 17 | . . 17 . Lose Combat Pursuer 30 | . . 30 . Influence Decreases 350 | 5 76 267 2 Entered New Map 44 | . . 42 2 Time Decay 261 | 5 76 180 . Lost Part 20 | . . 20 . Lost Ally 25 | . . 25 . Squads Dispatched 2 | . 1 1 . Investigation . | . . . . Extermination . | . . . . Reinforcement 1 | . 1 . . Assault 1 | . . 1 . Garrison . | . . . . Intercept . | . . . . Searches Triggered . | . . . . Construction Impeded . | . . . . Haulers Reinforced . | . . . . Active Scanning Responses . | . . . . Cargo Convoy Interrupts . | . . . . Stealth | -11 -10 -10 -10 --------- Run | Yrd Mat Min Sub Distress Signals 2 | . 1 1 . Communications Jammed . | . . . . Distress Signals . | . . . . Times Spotted 36 | . 13 20 3 Peak Tracking Total 4 | . 3 4 3 Tactical Retreats 3 | . . 3 . Traps | -11 -10 -10 -10 ------- Run | Yrd Mat Min Sub Traps Triggered . | . . . . Indirectly . | . . . . Trap Hack Attempts . | . . . . Triggered . | . . . . Disarmed . | . . . . Reprogrammed . | . . . . Reused . | . . . . Traps Extracted . | . . . . Installed . | . . . . Triggered . | . . . . Machines | -11 -10 -10 -10 ---------- Run | Yrd Mat Min Sub Machines Disabled . | . . . . Max in Single Turn . | . . . . Machines Repaired . | . . . . Machines Dismantled . | . . . . Machines Sabotaged . | . . . . Overloaded Fab Kills . | . . . . Hacking | -11 -10 -10 -10 --------- Run | Yrd Mat Min Sub Machines Accessed 2 | . 2 . . Terminals 2 | . 2 . . Fabricators . | . . . . Repair Stations . | . . . . Recycling Units . | . . . . Scanalyzers . | . . . . Garrison Access . | . . . . Total Hacks 2 | . 2 . . Successful 2 | . 2 . . Failed . | . . . . Catastrophic . | . . . . Database Lockouts . | . . . . Manual 1 | . 1 . . Terminals 2 | . 2 . . Fabricators . | . . . . Repair Stations . | . . . . Recycling Units . | . . . . Scanalyzers . | . . . . Garrison Access . | . . . . Terminal Hacks 1 | . 1 . . Robot Analysis 1 | . 1 . . Fabricator Hacks . | . . . . Repair Station Hacks . | . . . . Recycling Unit Hacks . | . . . . Scanalyzer . | . . . . Garrison Access Hacks . | . . . . Unauthorized Hacks 1 | . 1 . . Terminals 1 | . 1 . . Operators 1 | . 1 . . Fabricators . | . . . . Repair Stations . | . . . . Recycling Units . | . . . . Scanalyzers . | . . . . Garrison Access . | . . . . Data Cores Recovered . | . . . . Used . | . . . . Hacking Detections . | . . . . Full Trace Events . | . . . . Feedback Events . | . . . . Feedback Blocked . | . . . . Robot Schematics Acquired . | . . . . Robots Built . | . . . . Authchips . | . . . . Time . | . . . . Total Robot Build Rating . | . . . . Part Schematics Acquired . | . . . . Parts Built . | . . . . Authchips . | . . . . Time . | . . . . Total Part Build Rating . | . . . . Part Studies Acquired . | . . . . Parts Repaired . | . . . . Time . | . . . . Parts Recycled . | . . . . Recycled Matter . | . . . . Retrieved Matter . | . . . . Retrieved Components . | . . . . Parts Scanalyzed . | . . . . Part Schematics Acquired . | . . . . Parts Damaged . | . . . . Bothacking | -11 -10 -10 -10 ------------ Run | Yrd Mat Min Sub Used RIF Installer . | . . . . Robots Hacked . | . . . . Non-combat . | . . . . Combat . | . . . . Robot Hacks Applied . | . . . . Relay Couplers Released . | . . . . Fabnet Peak Effective % . | . . . . Robots Rewired . | . . . . Allies Hacked . | . . . . Hacks Repelled . | . . . . Allies | -11 -10 -10 -10 -------- Run | Yrd Mat Min Sub Total Allies 4 | . . 4 . Largest Group 3 | . . 3 . Highest-Rated Group 40 | . . 40 . Highest-Rated Ally 31 | . . 31 . Total Orders . | . . . . Ally Attacks 27 | . . 27 . Total Damage 281 | . . 281 . Kills 7 | . . 7 . Allies Corrupted . | . . . . Allies Melted . | . . . . Intel | -11 -10 -10 -10 ------- Run | Yrd Mat Min Sub Active Infowar (turns) 409 | . . 375 34 Terrain 409 | . . 375 34 Robot Analysis Total 1 | . 1 . . Derelict Logs Recovered 2 | . . 2 . Drone Launches . | . . . . Drone Recoveries . | . . . . Exploration | -11 -10 -10 -10 ------------- Run | Yrd Mat Min Sub Turns Passed 1803 | 114 313 1342 34 Spaces Moved 1166 | 58 162 920 26 Core 83 | 2 2 79 . Treads 185 | 56 129 . . Legs . | . . . . Wheels 484 | . . 458 26 Hover . | . . . . Flight 414 | . 31 383 . Fastest Speed 37 | 50 37 37 80 Average Speed 83 | 156 135 69 80 Slowest Speed 160 | 160 160 150 80 Overloaded Moves . | . . . . Propulsion Burnouts . | . . . . Robots Hopped 14 | . . 14 . Potential Cave-ins 10 | . . 10 . Cave-ins Triggered 2 | . . 2 . Exploration Rate (%) 32 | 4 21 99 5 Regions Visited 3 Branch Regions 2 Pre-discovered Areas . | . . . . Known Exits Taken . | . . . . Unknown Exits Taken 3 | 1 1 1 . Scrap Searched 3 | . . 1 2 Spaces Dug . | . . . . Terrain Destroyed 37 | . . 37 . Melee . | . . . . Projectile . | . . . . AOE 37 | . . 37 . Terrain Rammed . | . . . . Walls Destroyed . | . . . . Machines Disabled . | . . . . Actions | -11 -10 -10 -10 --------- Run | Yrd Mat Min Sub Total 1855 | 71 207 1544 33 Wait 586 | . 9 577 . Move 1135 | 57 161 891 26 Hop 12 | . . 12 . Pick Up 9 | 2 2 5 . Fast Attach 15 | 7 5 3 . Attach 1 | . . 1 . Detach . | . . . . Swap 14 | 1 2 9 2 Drop 8 | . . 7 1 Fire 73 | 4 28 37 4 Melee . | . . . . Ram . | . . . . Kick . | . . . . Crush . | . . . . Escape Stasis 2 | . . 2 . Rewire . | . . . . Trap . | . . . . Miscellaneous . | . . . . Route ------- -11/Scrapyard -10/Materials -10/Mines (discovered 3 exits: [*Mat x2] / [*Sub]) -10/Subcaves (discovered 1 exit: Rec) History --------- Turn | Location | Event 32 | -11/Scrapyard | Discovered new exit (range 16) 115 | -11/Scrapyard | Entered Materials 326 | -10/Materials | Build established: Mutant 407 | -10/Materials | Released all parts (7) 424 | -10/Materials | Discovered new exit (range 9) 428 | -10/Materials | Entered Mines 447 | -10/Mines | Discovered new exit (range 5) 480 | -10/Mines | Discovered new exit (range 13) 482 | -10/Mines | YI-UF0 nonchalantly dropped a Grenade Launcher on the ground 491 | -10/Mines | Assisted by bots powering up and referring to "LRC-V3" 517 | -10/Mines | Assembled infested the area 522 | -10/Mines | Assisted by a Guerilla fighting off Assembled 583 | -10/Mines | Met a Derelict testing a Signal Generator 680 | -10/Mines | Crushed by falling debris 714 | -10/Mines | Destroyed 7 combat bots 731 | -10/Mines | Core integrity fell below 50% 1382 | -10/Mines | Crushed by falling debris 1492 | -10/Mines | Discovered new exit (range 6) 1682 | -10/Mines | Build established: Scavenger-Mutant 1770 | -10/Mines | Entered Subcaves 1771 | -10/Subcaves | Identified exit to Recycling 1795 | -10/Subcaves | Visited 4L-MR0's lab 1803 | -10/Subcaves | Core integrity fell below 20% 1804 | -10/Subcaves | Destroyed by WV-000(R) with Subdweller Machine Gun Last Messages --------------- K-01 Serf collects debris. G-47 Trooper destroyed. Acquired 4 matter. LOCATION=UNKNOWN AMBIENT_HEAT=-10 GOAL=ESCAPE Loading 1 Recycling entrance... Searching scrap... Found Mak. Sword. Found Battle Cannon. Found 45 Matter. Searching scrap... Found Sub. Beam Cannon. Found Sub. Machine Gun. Found 59 Matter. Subatomizers dissect the Mak. Sword. Acquired Battle Cannon. Dropped Lgt. Assault Rifle. GH-NX6(R) destroyed. 0N-8N9(R) knocked back. Map ----- +----------------------------------------------------+ | ?????????????????????????????????????????????????? | | ?????????????????????????????????????????????????? | | ?????????????????????????????????????????????????? | | ?????????????????????????????????????????????????? | | ?????????????????????????????????????????????????? | | ?????????????????????????????????????????????????? | | ?????????????????????????????????????????????????? | | ?????????????????????????????????????????????????? | | ?????????????????????????????????????????????????? | | ?????????????????????????????????????????????????? | | ?????????????????????????????????????????????????? | | ?????????????????????????????????????????????????? | | ?????????????????????????????????????????????????? | | ?????????????????????????????????????????????????? | | ?????????????????????????????????????????????????? | | ?????????????????????????????????????????????????? | | ?????????????????????????????????????????????????? | | ?????????????????????????????????????????????????? | | ?????????????????????????????????????????????????? | | ?????????????????#???????????????????????????????? | | ?????????????????????????????????????????????????? | | ?????????????#??#????????????????????????????????? | | ??????????????# "#""?????????????????????????????? | | ??????????????#*" "X"??????#????????????????????? | | ????????????????# [%R%#####????????????????????? | | ????????????????# R /@ #?#???#??????????????? | | ?????????????????######### <#????????????????????? | | ?????????????#$###????#### <#????????????????????? | | ?????????????# #####/%% #????????????????????? | | ??????????????#" # [[] #????????? ??????????? | | ?????????????????## ##????????????????????? | | ?????????????????#" ## "##?????????????????????? | | ???????????????###" "#####??????????????????????? | | ?????????????### " ##? ?????????????????????? | | ???#####???### #????????????????????? | | #### #??# #### ## ????????????????? | | ### #??? #???????????????? | | # #??? ##???????????????? | | # ##??? #????????????????? | | ?# ##???? ##????????????????? | | # #### #????? #?????????????????? | | # #???# #????? #????????????????? | | ????## ???? ??????????????????? | | #####??????# ???? ? ##??????????????????? | | ???????? ??? ??## #???????????????????? | | ????????????? ##???# ? ????????????????????? | | ????????????? ###?????????????????????????????? | | ????????????? #???????????????????????????????? | | ????????????? ???????????????????????????????? | | ????????????? ???????????????????????????????? | +----------------------------------------------------+ Best States ------------- Heat Dissipation 25 Energy Generation 10 Energy Capacity 250 Matter Stores 300 Matter Capacity 300 Sight Range 16 Terrain Scan Range 14 Terrain Scan Density 10 Evasion (%) 62 Recoil Reduction 2 Item Schematics ----------------- None Robot Schematics ------------------ None Fabricated ------------ Nothing Repaired ---------- Nothing Studied --------- None Alien Tech Used ----------------- None Achievements -------------- None Challenges ------------ None Game ------ Seed PotentialJammingFacilitator Manual? 0 Play Time 00:12:04 Cumulative 45.8 hours Start 2025.10.27 @ 12:14:08 End 2025.10.27 @ 12:27:51 Sessions 1 Manual Loads 0 Difficulty Rogue Special Mode None Game No. 84 Rogue 81 Adventurer 0 Explorer 3 Win Type - Total 1 Types 1/0/0/0/0/0/0/0/0/0 Lore% 40 Gallery% 32 Achievement% 22 Wizard Run 0 Options --------- Layout 1 ASCII 0 Keyboard 1 Movement Numpad Keybinds 0 Fullscreen 1 Font 24/Smallcaps Map View 50x35 Zoom Use 0% Tactical HUD 0 Map Filters NONE Filters NONE Steam 1 RUN: 961e2916-1ba4-4cbf-83c4-7eb9a5d52175